[Event "Titled Tuesday Blitz April 19 Early 2022"]
[White "Gharibyan, Mamikon"]
[Black "Ljukin, Sergei"]
[WhiteFideId "13308300"]
[BlackFideId "14102200"]
[WhiteElo "2254"]
[BlackElo "2312"]
[Result "1-0"]
[Round "08"]
[TimeControl "180+1"]
[Date "2022.04.19"]
[WhiteClock "0:01:09"]
[BlackClock "0:00:12"]

1. c4 {[%clk 0:02:55]}  c6 {[%clk 0:02:59]} 2. d4 {[%clk 0:02:53]}  d5 {[%clk 0:02:59]} 3. Nf3 {[%clk 0:02:53]}  Nf6 {[%clk 0:02:59]} 4. e3 {[%clk 0:02:52]}  e6 {[%clk 0:02:59]} 5. Bd3 {[%clk 0:02:52]}  dxc4 {[%clk 0:02:58]} 6. Bxc4 {[%clk 0:02:53]}  b5 {[%clk 0:02:59]} 7. Bd3 {[%clk 0:02:51]}  a6 {[%clk 0:02:59]} 8. a4 {[%clk 0:02:48]}  Nbd7 {[%clk 0:02:54]} 9. Nbd2 {[%clk 0:02:48]}  Bb7 {[%clk 0:02:53]} 10. Nb3 {[%clk 0:02:48]}  Bd6 {[%clk 0:02:45]} 11. Bd2 {[%clk 0:02:43]}  e5 {[%clk 0:02:44]} 12. Na5 {[%clk 0:02:39]}  Qc7 {[%clk 0:02:35]} 13. axb5 {[%clk 0:02:37]}  cxb5 {[%clk 0:02:25]} 14. Rc1 {[%clk 0:02:34]}  Qb6 {[%clk 0:02:21]} 15. dxe5 {[%clk 0:02:29]}  Nxe5 {[%clk 0:02:21]} 16. Nxe5 {[%clk 0:02:25]}  Bxe5 {[%clk 0:02:21]} 17. Nxb7 {[%clk 0:02:24]}  Qxb7 {[%clk 0:02:20]} 18. O-O {[%clk 0:02:17]}  Rd8 {[%clk 0:02:17]} 19. Ba5 {[%clk 0:02:14]}  Rd5 {[%clk 0:01:47]} 20. Qc2 {[%clk 0:02:00]}  O-O {[%clk 0:01:44]} 21. Be2 {[%clk 0:02:00]}  h6 {[%clk 0:01:25]} 22. Bf3 {[%clk 0:01:57]}  Qe7 {[%clk 0:01:05]} 23. Bxd5 {[%clk 0:01:54]}  Nxd5 {[%clk 0:01:05]} 24. Rfd1 {[%clk 0:01:52]}  Nf6 {[%clk 0:01:02]} 25. g3 {[%clk 0:01:50]}  h5 {[%clk 0:01:00]} 26. Qf5 {[%clk 0:01:46]}  Bxb2 {[%clk 0:00:58]} 27. Rb1 {[%clk 0:01:33]}  Qa3 {[%clk 0:00:42]} 28. Bc7 {[%clk 0:01:28]}  b4 {[%clk 0:00:36]} 29. Bd6 {[%clk 0:01:22]}  Re8 {[%clk 0:00:29]} 30. Rd3 {[%clk 0:01:13]}  Bc3 {[%clk 0:00:12]} 31. Bxb4 {[%clk 0:01:11]}  Qa2 {[%clk 0:00:12]} 32. Rxc3 {[%clk 0:01:09]} 1-0


[Site "https://www.chess.com"]

[Event "Titled Tuesday Blitz April 19 Early 2022"]
[White "Golubeva, Oksana"]
[Black "Araujo Filho, Luiz Antonio Coel"]
[WhiteFideId "4170164"]
[BlackFideId "2130661"]
[WhiteElo "2162"]
[BlackElo "2325"]
[Result "1/2-1/2"]
[Round "08"]
[TimeControl "180+1"]
[Date "2022.04.19"]
[WhiteClock "0:00:01"]
[BlackClock "0:00:08"]

1. Nf3 {[%clk 0:03:00]}  f5 {[%clk 0:02:59]} 2. d4 {[%clk 0:02:59]}  Nf6 {[%clk 0:02:59]} 3. b3 {[%clk 0:02:59]}  g6 {[%clk 0:03:00]} 4. Bb2 {[%clk 0:02:59]}  Bg7 {[%clk 0:03:00]} 5. Nbd2 {[%clk 0:02:59]}  O-O {[%clk 0:03:00]} 6. Nc4 {[%clk 0:02:59]}  d6 {[%clk 0:02:58]} 7. e3 {[%clk 0:02:58]}  c6 {[%clk 0:02:58]} 8. Be2 {[%clk 0:02:58]}  Nbd7 {[%clk 0:02:56]} 9. a4 {[%clk 0:02:54]}  Qe8 {[%clk 0:02:52]} 10. a5 {[%clk 0:02:51]}  Ne4 {[%clk 0:02:51]} 11. Nfd2 {[%clk 0:02:46]}  Rb8 {[%clk 0:02:43]} 12. f3 {[%clk 0:02:45]}  Nef6 {[%clk 0:02:37]} 13. O-O {[%clk 0:02:40]}  b5 {[%clk 0:02:37]} 14. axb6 {[%clk 0:02:39]}  axb6 {[%clk 0:02:37]} 15. Ra7 {[%clk 0:02:34]}  d5 {[%clk 0:02:23]} 16. Ne5 {[%clk 0:02:30]}  Nxe5 {[%clk 0:02:23]} 17. dxe5 {[%clk 0:02:31]}  Nd7 {[%clk 0:02:22]} 18. f4 {[%clk 0:02:30]}  Nc5 {[%clk 0:02:18]} 19. b4 {[%clk 0:02:15]}  Nd7 {[%clk 0:02:00]} 20. Bf3 {[%clk 0:02:13]}  Bb7 {[%clk 0:01:56]} 21. b5 {[%clk 0:01:59]}  e6 {[%clk 0:01:43]} 22. bxc6 {[%clk 0:01:56]}  Bxc6 {[%clk 0:01:43]} 23. Nb3 {[%clk 0:01:56]}  Nc5 {[%clk 0:01:39]} 24. Nd4 {[%clk 0:01:55]}  Bd7 {[%clk 0:01:27]} 25. Qe2 {[%clk 0:01:13]}  Rf7 {[%clk 0:00:34]} 26. Rfa1 {[%clk 0:01:12]}  b5 {[%clk 0:00:23]} 27. Qd2 {[%clk 0:00:54]}  Na4 {[%clk 0:00:22]} 28. Ba3 {[%clk 0:00:35]}  Nb6 {[%clk 0:00:22]} 29. Bd6 {[%clk 0:00:34]}  Nc4 {[%clk 0:00:19]} 30. Qb4 {[%clk 0:00:30]}  Rc8 {[%clk 0:00:20]} 31. Kf2 {[%clk 0:00:25]}  Nxd6 {[%clk 0:00:16]} 32. Qxd6 {[%clk 0:00:26]}  Bf8 {[%clk 0:00:11]} 33. Qb6 {[%clk 0:00:26]}  Bc5 {[%clk 0:00:09]} 34. Qa6 {[%clk 0:00:23]}  Bxa7 {[%clk 0:00:09]} 35. Qxa7 {[%clk 0:00:24]}  Bc6 {[%clk 0:00:07]} 36. Qb6 {[%clk 0:00:24]}  Bd7 {[%clk 0:00:07]} 37. Ra6 {[%clk 0:00:23]}  Rb8 {[%clk 0:00:05]} 38. Qa5 {[%clk 0:00:23]}  Rc8 {[%clk 0:00:05]} 39. h4 {[%clk 0:00:21]}  h6 {[%clk 0:00:05]} 40. Be2 {[%clk 0:00:17]}  Kg7 {[%clk 0:00:03]} 41. Bxb5 {[%clk 0:00:17]}  Bxb5 {[%clk 0:00:03]} 42. Nxb5 {[%clk 0:00:16]}  Rxc2+ {[%clk 0:00:03]} 43. Kf3 {[%clk 0:00:15]}  Qc8 {[%clk 0:00:02]} 44. Nd4 {[%clk 0:00:14]}  Qc4 {[%clk 0:00:02]} 45. Nxc2 {[%clk 0:00:13]}  Qxc2 {[%clk 0:00:02]} 46. Rxe6 {[%clk 0:00:13]}  Qd1+ {[%clk 0:00:02]} 47. Kf2 {[%clk 0:00:13]}  Qc2+ {[%clk 0:00:02]} 48. Kf1 {[%clk 0:00:12]}  Qd1+ {[%clk 0:00:02]} 49. Qe1 {[%clk 0:00:12]}  Qd3+ {[%clk 0:00:01]} 50. Kf2 {[%clk 0:00:13]}  Qc2+ {[%clk 0:00:01]} 51. Qe2 {[%clk 0:00:13]}  Qe4 {[%clk 0:00:02]} 52. Rd6 {[%clk 0:00:12]}  Rc7 {[%clk 0:00:02]} 53. Kg3 {[%clk 0:00:09]}  Rc2 {[%clk 0:00:03]} 54. Qf1 {[%clk 0:00:09]}  Rd2 {[%clk 0:00:02]} 55. Qf3 {[%clk 0:00:09]}  Rd3 {[%clk 0:00:02]} 56. Qxe4 {[%clk 0:00:09]}  dxe4 {[%clk 0:00:03]} 57. Rc6 {[%clk 0:00:06]}  Rxe3+ {[%clk 0:00:03]} 58. Kf2 {[%clk 0:00:07]}  Rd3 {[%clk 0:00:04]} 59. Rc7+ {[%clk 0:00:07]}  Kf8 {[%clk 0:00:03]} 60. e6 {[%clk 0:00:07]}  Ke8 {[%clk 0:00:03]} 61. Rg7 {[%clk 0:00:07]}  Rd6 {[%clk 0:00:03]} 62. Rxg6 {[%clk 0:00:06]}  Ke7 {[%clk 0:00:04]} 63. Rxh6 {[%clk 0:00:05]}  Rxe6 {[%clk 0:00:05]} 64. Rxe6+ {[%clk 0:00:05]}  Kxe6 {[%clk 0:00:05]} 65. Ke3 {[%clk 0:00:05]}  Kf6 {[%clk 0:00:05]} 66. Kd4 {[%clk 0:00:05]}  Kg6 {[%clk 0:00:06]} 67. g4 {[%clk 0:00:05]}  fxg4 {[%clk 0:00:05]} 68. Kxe4 {[%clk 0:00:05]}  Kh5 {[%clk 0:00:05]} 69. f5 {[%clk 0:00:05]}  Kxh4 {[%clk 0:00:06]} 70. f6 {[%clk 0:00:03]}  g3 {[%clk 0:00:06]} 71. f7 {[%clk 0:00:04]}  g2 {[%clk 0:00:06]} 72. f8=Q {[%clk 0:00:05]}  g1=Q {[%clk 0:00:06]} 73. Qh8+ {[%clk 0:00:05]}  Kg3 {[%clk 0:00:07]} 74. Qg7+ {[%clk 0:00:05]}  Kf2 {[%clk 0:00:07]} 75. Qd4+ {[%clk 0:00:04]}  Kf1 {[%clk 0:00:07]} 76. Qd3+ {[%clk 0:00:04]}  Kf2 {[%clk 0:00:08]} 77. Qe3+ {[%clk 0:00:02]}  Kf1 {[%clk 0:00:08]} 78. Qxg1+ {[%clk 0:00:01]}  Kxg1 {[%clk 0:00:08]} 1/2-1/2


[Site "https://www.chess.com"]

[Event "Titled Tuesday Blitz April 19 Early 2022"]
[White "Dronavalli, Harika"]
[Black "Popadic, Dragan"]
[WhiteFideId "5015197"]
[BlackFideId "913650"]
[WhiteElo "2382"]
[BlackElo "2203"]
[Result "1-0"]
[Round "08"]
[TimeControl "180+1"]
[Date "2022.04.19"]
[WhiteClock "0:00:53"]
[BlackClock "0:00:03"]

1. d4 {[%clk 0:03:00]}  Nf6 {[%clk 0:02:58]} 2. Nf3 {[%clk 0:02:59]}  g6 {[%clk 0:02:58]} 3. Bg5 {[%clk 0:02:59]}  Bg7 {[%clk 0:02:58]} 4. Nbd2 {[%clk 0:02:59]}  O-O {[%clk 0:02:57]} 5. e4 {[%clk 0:02:58]}  d6 {[%clk 0:02:58]} 6. Bd3 {[%clk 0:02:57]}  Nc6 {[%clk 0:02:57]} 7. c3 {[%clk 0:02:57]}  e5 {[%clk 0:02:57]} 8. h3 {[%clk 0:02:53]}  Qe7 {[%clk 0:02:57]} 9. O-O {[%clk 0:02:52]}  h6 {[%clk 0:02:55]} 10. Be3 {[%clk 0:02:41]}  a6 {[%clk 0:02:54]} 11. Re1 {[%clk 0:02:41]}  Bd7 {[%clk 0:02:53]} 12. Nf1 {[%clk 0:02:38]}  Rad8 {[%clk 0:02:51]} 13. Ng3 {[%clk 0:02:38]}  Bc8 {[%clk 0:02:50]} 14. Qb3 {[%clk 0:02:19]}  Kh7 {[%clk 0:02:45]} 15. Rad1 {[%clk 0:02:18]}  Na5 {[%clk 0:02:30]} 16. Qc2 {[%clk 0:02:17]}  Nc6 {[%clk 0:02:30]} 17. a3 {[%clk 0:02:17]}  Ng8 {[%clk 0:02:20]} 18. b4 {[%clk 0:02:16]}  Qf6 {[%clk 0:02:19]} 19. Kh2 {[%clk 0:02:02]}  Bd7 {[%clk 0:02:08]} 20. Bc4 {[%clk 0:01:58]}  Qe7 {[%clk 0:01:51]} 21. a4 {[%clk 0:01:53]}  Nb8 {[%clk 0:01:48]} 22. b5 {[%clk 0:01:48]}  axb5 {[%clk 0:01:47]} 23. axb5 {[%clk 0:01:48]}  Bc8 {[%clk 0:01:45]} 24. Qb3 {[%clk 0:01:47]}  Nd7 {[%clk 0:01:42]} 25. Bc1 {[%clk 0:01:40]}  Nb6 {[%clk 0:01:41]} 26. dxe5 {[%clk 0:01:34]}  Nxc4 {[%clk 0:01:34]} 27. Qxc4 {[%clk 0:01:34]}  dxe5 {[%clk 0:01:33]} 28. Be3 {[%clk 0:01:34]}  b6 {[%clk 0:01:26]} 29. Kg1 {[%clk 0:01:26]}  Bb7 {[%clk 0:01:25]} 30. Nh2 {[%clk 0:01:26]}  Nf6 {[%clk 0:01:23]} 31. h4 {[%clk 0:01:20]}  Rxd1 {[%clk 0:01:18]} 32. Rxd1 {[%clk 0:01:20]}  Rd8 {[%clk 0:01:18]} 33. Rxd8 {[%clk 0:01:20]}  Qxd8 {[%clk 0:01:18]} 34. Qxf7 {[%clk 0:01:20]}  Qd1+ {[%clk 0:01:17]} 35. Nhf1 {[%clk 0:01:20]}  Qd6 {[%clk 0:01:08]} 36. h5 {[%clk 0:01:15]}  Nxh5 {[%clk 0:01:08]} 37. Nxh5 {[%clk 0:01:15]}  gxh5 {[%clk 0:01:08]} 38. Ng3 {[%clk 0:01:14]}  h4 {[%clk 0:00:54]} 39. Nf5 {[%clk 0:01:14]}  Qf6 {[%clk 0:00:48]} 40. Qxc7 {[%clk 0:01:07]}  Bxe4 {[%clk 0:00:48]} 41. Nxg7 {[%clk 0:01:06]}  Qxg7 {[%clk 0:00:48]} 42. Qxg7+ {[%clk 0:01:05]}  Kxg7 {[%clk 0:00:47]} 43. Bxb6 {[%clk 0:01:06]}  Bd3 {[%clk 0:00:48]} 44. Bc7 {[%clk 0:01:06]}  Bxb5 {[%clk 0:00:46]} 45. Bxe5+ {[%clk 0:01:06]}  Kg6 {[%clk 0:00:47]} 46. Bd6 {[%clk 0:01:02]}  h5 {[%clk 0:00:45]} 47. Be7 {[%clk 0:01:01]}  h3 {[%clk 0:00:45]} 48. gxh3 {[%clk 0:01:01]}  Kf5 {[%clk 0:00:44]} 49. Kg2 {[%clk 0:01:00]}  Bc6+ {[%clk 0:00:42]} 50. Kg3 {[%clk 0:01:00]}  Bd5 {[%clk 0:00:41]} 51. Bc5 {[%clk 0:01:00]}  Kg5 {[%clk 0:00:39]} 52. Be3+ {[%clk 0:01:00]}  Kf5 {[%clk 0:00:39]} 53. Kh4 {[%clk 0:01:00]}  Kg6 {[%clk 0:00:39]} 54. f4 {[%clk 0:00:59]}  Be6 {[%clk 0:00:38]} 55. Bd4 {[%clk 0:01:00]}  Kh6 {[%clk 0:00:31]} 56. Kg3 {[%clk 0:00:53]}  Kg6 {[%clk 0:00:31]} 57. h4 {[%clk 0:00:53]}  Kf5 {[%clk 0:00:30]} 58. Kf3 {[%clk 0:00:54]}  Bc4 {[%clk 0:00:29]} 59. Ke3 {[%clk 0:00:53]}  Bb5 {[%clk 0:00:27]} 60. Bb6 {[%clk 0:00:53]}  Bf1 {[%clk 0:00:18]} 61. Bc7 {[%clk 0:00:53]}  Ba6 {[%clk 0:00:17]} 62. Bd8 {[%clk 0:00:53]}  Bb5 {[%clk 0:00:16]} 63. Bg5 {[%clk 0:00:53]}  Ke6 {[%clk 0:00:12]} 64. Kd4 {[%clk 0:00:53]}  Bc6 {[%clk 0:00:11]} 65. c4 {[%clk 0:00:53]}  Bf3 {[%clk 0:00:11]} 66. Kc5 {[%clk 0:00:53]}  Kd7 {[%clk 0:00:10]} 67. f5 {[%clk 0:00:52]}  Be4 {[%clk 0:00:10]} 68. f6 {[%clk 0:00:52]}  Bg6 {[%clk 0:00:09]} 69. Kb6 {[%clk 0:00:51]}  Bf7 {[%clk 0:00:08]} 70. c5 {[%clk 0:00:51]}  Kc8 {[%clk 0:00:08]} 71. Kc6 {[%clk 0:00:51]}  Bb3 {[%clk 0:00:04]} 72. Kd6 {[%clk 0:00:51]}  Ba2 {[%clk 0:00:02]} 73. Ke7 {[%clk 0:00:51]}  Kc7 {[%clk 0:00:03]} 74. f7 {[%clk 0:00:51]}  Bxf7 {[%clk 0:00:03]} 75. Kxf7 {[%clk 0:00:52]}  Kc6 {[%clk 0:00:03]} 76. Kg6 {[%clk 0:00:52]}  Kxc5 {[%clk 0:00:03]} 77. Kxh5 {[%clk 0:00:53]} 1-0


[Site "https://www.chess.com"]

[Event "Titled Tuesday Blitz April 19 Early 2022"]
[White "Harish, Neeraj"]
[Black "Gatterer, Florian"]
[WhiteFideId "30958130"]
[BlackFideId "811688"]
[WhiteElo "1574"]
[BlackElo "2218"]
[Result "0-1"]
[Round "08"]
[TimeControl "180+1"]
[Date "2022.04.19"]
[WhiteClock "0:00:16"]
[BlackClock "0:01:28"]

1. c4 {[%clk 0:02:59]}  e6 {[%clk 0:02:48]} 2. Nf3 {[%clk 0:02:53]}  Nf6 {[%clk 0:02:47]} 3. e3 {[%clk 0:02:52]}  d5 {[%clk 0:02:41]} 4. Nc3 {[%clk 0:02:37]}  Be7 {[%clk 0:02:41]} 5. cxd5 {[%clk 0:02:36]}  exd5 {[%clk 0:02:41]} 6. b3 {[%clk 0:02:35]}  O-O {[%clk 0:02:36]} 7. Bb2 {[%clk 0:02:35]}  c5 {[%clk 0:02:36]} 8. d4 {[%clk 0:02:30]}  Nc6 {[%clk 0:02:36]} 9. Be2 {[%clk 0:02:28]}  Bg4 {[%clk 0:02:27]} 10. O-O {[%clk 0:02:20]}  Re8 {[%clk 0:02:27]} 11. h3 {[%clk 0:01:29]}  Bh5 {[%clk 0:02:26]} 12. dxc5 {[%clk 0:01:26]}  Bxc5 {[%clk 0:02:25]} 13. Nb5 {[%clk 0:01:25]}  Ne4 {[%clk 0:02:04]} 14. Nbd4 {[%clk 0:00:54]}  Rc8 {[%clk 0:02:03]} 15. Rc1 {[%clk 0:00:53]}  Bb6 {[%clk 0:02:02]} 16. a3 {[%clk 0:00:26]}  a5 {[%clk 0:01:51]} 17. Rc2 {[%clk 0:00:19]}  Bg6 {[%clk 0:01:41]} 18. Rc1 {[%clk 0:00:18]}  Qe7 {[%clk 0:01:37]} 19. Nd2 {[%clk 0:00:18]}  Nxd4 {[%clk 0:01:33]} 20. Nxe4 {[%clk 0:00:17]}  Nxe2+ {[%clk 0:01:30]} 21. Qxe2 {[%clk 0:00:16]}  Bxe4 {[%clk 0:01:28]} 0-1


[Site "https://www.chess.com"]

[Event "Titled Tuesday Blitz April 19 Early 2022"]
[White "Jaracz, Pawel"]
[Black "Zakhartsov, Vladimir"]
[WhiteFideId "1102222"]
[BlackFideId "4145097"]
[WhiteElo "2429"]
[BlackElo "2491"]
[Result "1-0"]
[Round "08"]
[TimeControl "180+1"]
[Date "2022.04.19"]
[WhiteClock "0:01:53"]
[BlackClock "0:01:45"]

1. e4 {[%clk 0:03:00]}  c5 {[%clk 0:02:58]} 2. Nf3 {[%clk 0:02:57]}  d6 {[%clk 0:02:59]} 3. d4 {[%clk 0:02:55]}  cxd4 {[%clk 0:03:00]} 4. Nxd4 {[%clk 0:02:55]}  Nf6 {[%clk 0:03:00]} 5. Nc3 {[%clk 0:02:56]}  a6 {[%clk 0:03:01]} 6. Bg5 {[%clk 0:02:56]}  Nbd7 {[%clk 0:03:00]} 7. f4 {[%clk 0:02:53]}  h6 {[%clk 0:03:01]} 8. Bxf6 {[%clk 0:02:52]}  Nxf6 {[%clk 0:03:02]} 9. f5 {[%clk 0:02:51]}  Qc7 {[%clk 0:02:52]} 10. Qf3 {[%clk 0:02:47]}  b5 {[%clk 0:02:50]} 11. O-O-O {[%clk 0:02:47]}  g5 {[%clk 0:02:50]} 12. fxg6 {[%clk 0:02:45]}  Bg4 {[%clk 0:02:48]} 13. gxf7+ {[%clk 0:02:43]}  Kxf7 {[%clk 0:02:48]} 14. Qd3 {[%clk 0:02:27]}  Bxd1 {[%clk 0:02:47]} 15. Nxd1 {[%clk 0:02:25]}  Rc8 {[%clk 0:02:45]} 16. Qb3+ {[%clk 0:02:24]}  Ke8 {[%clk 0:02:42]} 17. Bd3 {[%clk 0:02:17]}  Rg8 {[%clk 0:02:36]} 18. g3 {[%clk 0:02:16]}  h5 {[%clk 0:02:35]} 19. Rf1 {[%clk 0:02:16]}  Bh6+ {[%clk 0:02:33]} 20. Kb1 {[%clk 0:02:15]}  Rg5 {[%clk 0:01:50]} 21. Rxf6 {[%clk 0:01:58]}  exf6 {[%clk 0:01:46]} 22. Qe6+ {[%clk 0:01:57]}  Kf8 {[%clk 0:01:45]} 23. Qxf6+ {[%clk 0:01:58]}  Kg8 {[%clk 0:01:46]} 24. Qxh6 {[%clk 0:01:55]}  Qg7 {[%clk 0:01:45]} 25. Qe6+ {[%clk 0:01:53]} 1-0


[Site "https://www.chess.com"]

[Event "Titled Tuesday Blitz April 19 Early 2022"]
[White "Jarocka, Liwia"]
[Black "Skliarov, Viktor"]
[WhiteFideId "21807558"]
[BlackFideId "14106736"]
[WhiteElo "1896"]
[BlackElo "2229"]
[Result "1/2-1/2"]
[Round "08"]
[TimeControl "180+1"]
[Date "2022.04.19"]
[WhiteClock "0:00:10"]
[BlackClock "0:00:06"]

1. e4 {[%clk 0:03:00]}  c5 {[%clk 0:02:56]} 2. Nf3 {[%clk 0:03:00]}  Nc6 {[%clk 0:02:57]} 3. d4 {[%clk 0:03:00]}  cxd4 {[%clk 0:02:58]} 4. Nxd4 {[%clk 0:03:01]}  Nf6 {[%clk 0:02:58]} 5. Nc3 {[%clk 0:03:01]}  e5 {[%clk 0:02:59]} 6. Ndb5 {[%clk 0:03:01]}  d6 {[%clk 0:03:00]} 7. Bg5 {[%clk 0:03:00]}  a6 {[%clk 0:03:00]} 8. Na3 {[%clk 0:03:00]}  b5 {[%clk 0:03:01]} 9. Nd5 {[%clk 0:03:01]}  Be7 {[%clk 0:03:01]} 10. Bxf6 {[%clk 0:03:01]}  Bxf6 {[%clk 0:03:02]} 11. c3 {[%clk 0:03:01]}  O-O {[%clk 0:03:01]} 12. Nc2 {[%clk 0:03:01]}  Rb8 {[%clk 0:03:02]} 13. Bd3 {[%clk 0:02:58]}  Bg5 {[%clk 0:02:58]} 14. O-O {[%clk 0:02:57]}  Ne7 {[%clk 0:02:58]} 15. Ncb4 {[%clk 0:02:56]}  Bb7 {[%clk 0:02:56]} 16. a4 {[%clk 0:02:51]}  a5 {[%clk 0:02:51]} 17. Nxe7+ {[%clk 0:02:50]}  Qxe7 {[%clk 0:02:51]} 18. Nc2 {[%clk 0:02:44]}  bxa4 {[%clk 0:02:31]} 19. Rxa4 {[%clk 0:02:44]}  Bc6 {[%clk 0:02:31]} 20. Rxa5 {[%clk 0:02:41]}  Rxb2 {[%clk 0:02:28]} 21. Nb4 {[%clk 0:02:41]}  Bb7 {[%clk 0:02:11]} 22. Nd5 {[%clk 0:02:40]}  Bxd5 {[%clk 0:02:05]} 23. Rxd5 {[%clk 0:02:41]}  Rd2 {[%clk 0:01:44]} 24. Qb3 {[%clk 0:02:29]}  Be3 {[%clk 0:00:56]} 25. Bc4 {[%clk 0:01:59]}  Rxd5 {[%clk 0:00:55]} 26. Bxd5 {[%clk 0:01:59]}  Bc5 {[%clk 0:00:54]} 27. Qb7 {[%clk 0:01:52]}  Qf6 {[%clk 0:00:44]} 28. Kh1 {[%clk 0:01:49]}  g6 {[%clk 0:00:31]} 29. c4 {[%clk 0:01:45]}  Re8 {[%clk 0:00:26]} 30. f3 {[%clk 0:01:41]}  Re7 {[%clk 0:00:26]} 31. Qb2 {[%clk 0:01:40]}  Ra7 {[%clk 0:00:17]} 32. Ra1 {[%clk 0:01:10]}  Rxa1+ {[%clk 0:00:16]} 33. Qxa1 {[%clk 0:01:10]}  h5 {[%clk 0:00:17]} 34. Qf1 {[%clk 0:01:02]}  Kg7 {[%clk 0:00:14]} 35. g3 {[%clk 0:01:02]}  h4 {[%clk 0:00:13]} 36. Kg2 {[%clk 0:00:57]}  Qg5 {[%clk 0:00:13]} 37. Qe1 {[%clk 0:00:44]}  f5 {[%clk 0:00:10]} 38. Be6 {[%clk 0:00:19]}  Kf6 {[%clk 0:00:09]} 39. Bd5 {[%clk 0:00:19]}  Qh5 {[%clk 0:00:07]} 40. exf5 {[%clk 0:00:17]}  h3+ {[%clk 0:00:07]} 41. Kh1 {[%clk 0:00:13]}  gxf5 {[%clk 0:00:07]} 42. Qf1 {[%clk 0:00:12]}  Qh6 {[%clk 0:00:04]} 43. f4 {[%clk 0:00:12]}  e4 {[%clk 0:00:04]} 44. Qa1+ {[%clk 0:00:11]}  Ke7 {[%clk 0:00:04]} 45. Qa8 {[%clk 0:00:09]}  Qg7 {[%clk 0:00:01]} 46. Qb7+ {[%clk 0:00:10]}  Kf6 {[%clk 0:00:02]} 47. Qxg7+ {[%clk 0:00:10]}  Kxg7 {[%clk 0:00:02]} 48. Be6 {[%clk 0:00:10]}  Kf6 {[%clk 0:00:03]} 49. Bd7 {[%clk 0:00:11]}  Bf2 {[%clk 0:00:03]} 50. Bc6 {[%clk 0:00:11]}  Be3 {[%clk 0:00:03]} 51. Bd5 {[%clk 0:00:10]}  Bf2 {[%clk 0:00:04]} 52. Bc6 {[%clk 0:00:10]}  Bc5 {[%clk 0:00:04]} 53. Bd5 {[%clk 0:00:11]}  Ke7 {[%clk 0:00:03]} 54. Bb7 {[%clk 0:00:09]}  Kd7 {[%clk 0:00:04]} 55. Bd5 {[%clk 0:00:10]}  Ke7 {[%clk 0:00:04]} 56. Bc6 {[%clk 0:00:10]}  Kf6 {[%clk 0:00:05]} 57. Bd5 {[%clk 0:00:10]}  Bd4 {[%clk 0:00:05]} 58. Bc6 {[%clk 0:00:10]}  Bc5 {[%clk 0:00:06]} 1/2-1/2


[Site "https://www.chess.com"]

[Event "Titled Tuesday Blitz April 19 Early 2022"]
[White "Kamsky, Gata"]
[Black "Chernobay, Artem"]
[WhiteFideId "2000024"]
[BlackFideId "4167406"]
[WhiteElo "2645"]
[BlackElo "2473"]
[Result "1-0"]
[Round "08"]
[TimeControl "180+1"]
[Date "2022.04.19"]
[WhiteClock "0:01:05"]
[BlackClock "0:00:12"]

1. e4 {[%clk 0:03:00]}  e5 {[%clk 0:02:56]} 2. Nf3 {[%clk 0:02:59]}  Nc6 {[%clk 0:02:57]} 3. Bb5 {[%clk 0:02:58]}  a6 {[%clk 0:02:53]} 4. Ba4 {[%clk 0:02:58]}  Nf6 {[%clk 0:02:53]} 5. O-O {[%clk 0:02:58]}  b5 {[%clk 0:02:50]} 6. Bb3 {[%clk 0:02:58]}  Bc5 {[%clk 0:02:50]} 7. c3 {[%clk 0:02:57]}  d6 {[%clk 0:02:50]} 8. a4 {[%clk 0:02:57]}  Rb8 {[%clk 0:02:46]} 9. axb5 {[%clk 0:02:56]}  axb5 {[%clk 0:02:46]} 10. d4 {[%clk 0:02:56]}  Bb6 {[%clk 0:02:44]} 11. h3 {[%clk 0:02:56]}  O-O {[%clk 0:02:43]} 12. Re1 {[%clk 0:02:56]}  h6 {[%clk 0:02:40]} 13. Be3 {[%clk 0:02:55]}  Re8 {[%clk 0:02:21]} 14. Nbd2 {[%clk 0:02:54]}  exd4 {[%clk 0:01:52]} 15. cxd4 {[%clk 0:02:49]}  Bb7 {[%clk 0:01:42]} 16. d5 {[%clk 0:02:45]}  Bxe3 {[%clk 0:01:41]} 17. Rxe3 {[%clk 0:02:44]}  Ne5 {[%clk 0:01:31]} 18. Nxe5 {[%clk 0:02:40]}  Rxe5 {[%clk 0:01:19]} 19. Qc2 {[%clk 0:02:38]}  Nd7 {[%clk 0:01:03]} 20. Nf3 {[%clk 0:02:25]}  Re8 {[%clk 0:01:02]} 21. Qc3 {[%clk 0:02:17]}  b4 {[%clk 0:00:38]} 22. Qd4 {[%clk 0:02:03]}  Nc5 {[%clk 0:00:32]} 23. Bc4 {[%clk 0:02:02]}  f6 {[%clk 0:00:28]} 24. Nh4 {[%clk 0:01:50]}  Ra8 {[%clk 0:00:25]} 25. Rae1 {[%clk 0:01:49]}  Qd7 {[%clk 0:00:19]} 26. Nf5 {[%clk 0:01:45]}  Ba6 {[%clk 0:00:16]} 27. Bxa6 {[%clk 0:01:43]}  Rxa6 {[%clk 0:00:16]} 28. Rg3 {[%clk 0:01:16]}  Qxf5 {[%clk 0:00:16]} 29. exf5 {[%clk 0:01:16]}  Rxe1+ {[%clk 0:00:17]} 30. Kh2 {[%clk 0:01:16]}  Raa1 {[%clk 0:00:17]} 31. Re3 {[%clk 0:01:14]}  Rh1+ {[%clk 0:00:15]} 32. Kg3 {[%clk 0:01:14]}  Nd7 {[%clk 0:00:15]} 33. Re7 {[%clk 0:01:08]}  Ne5 {[%clk 0:00:15]} 34. Qxb4 {[%clk 0:01:06]}  Rad1 {[%clk 0:00:13]} 35. Qb8+ {[%clk 0:01:06]}  Kh7 {[%clk 0:00:13]} 36. Qf8 {[%clk 0:01:05]}  Rd3+ {[%clk 0:00:12]} 37. f3 {[%clk 0:01:05]} 1-0


[Site "https://www.chess.com"]